fUSD/lending_fUSD_20240428
["ID","MTS","AMOUNT","RATE_DAILY","PERIOD"]
[324799323,1714337448608,-3893.15,0.00010958,2]
[324799324,1714337448618,-500.0,0.00010958,2]
[324799325,1714337448627,-500.0,0.00010958,2]
[324799326,1714337448636,-500.0,0.00010958,2]
[324799327,1714337448645,-500.0,0.00010958,2]
[324799328,1714337448655,-798.4,0.00010958,2]
[324799329,1714337448664,-500.0,0.00010958,2]
[324799330,1714337448674,-500.0,0.00010958,2]
[324799331,1714337448685,-813.16,0.00010958,2]
[324799332,1714337448695,-500.0,0.00010958,2]
[324799333,1714337448705,-500.0,0.00010958,2]
[324799334,1714337448715,-500.0,0.00010958,2]
[324799335,1714337448724,-2495.39878,0.00010958,2]
[324799336,1714337448734,-500.0,0.00010958,2]
[324799337,1714337448743,-500.0,0.00010958,2]
[324799338,1714337448754,-500.0,0.00010958,2]
[324799339,1714337448764,-550.63,0.00010958,2]
[324799340,1714337448775,-585.22,0.00010958,2]
[324799341,1714337448784,-500.0,0.00010958,2]
[324799342,1714337448795,-500.0,0.00010958,2]
[324799343,1714337448805,-622.52,0.00010958,2]
[324799344,1714337448816,-500.0,0.00010958,2]
[324799345,1714337448826,-685.88,0.00010958,2]
[324799346,1714337448836,-500.0,0.00010958,2]
[324799347,1714337448845,-500.0,0.00010958,2]
[324799348,1714337448854,-500.0,0.00010958,2]
[324799349,1714337448863,-500.0,0.00010958,2]
[324799350,1714337448873,-500.0,0.00010958,2]
[324799351,1714337448882,-500.0,0.00010958,2]
[324799352,1714337448891,-500.0,0.00010958,2]
[324799353,1714337448900,-500.0,0.00010958,2]
[324799354,1714337448910,-500.0,0.00010958,2]
[324799355,1714337448919,-501.63355826,0.00010958,2]
[324799356,1714337448928,-500.0,0.00010958,2]
[324799357,1714337448937,-705.9,0.00010958,2]
[324799358,1714337448947,-1737.53,0.00010958,2]
[324799359,1714337448956,-500.0,0.00010958,2]
[324799360,1714337448966,-756.71,0.00010958,2]
[324799361,1714337448975,-500.0,0.00010958,2]
[324799362,1714337448985,-500.0,0.00010958,2]
[324799363,1714337448994,-500.0,0.00010958,2]
[324799364,1714337449003,-500.0,0.00010958,2]
[324799365,1714337449012,-247.66988734,0.00010958,2]
[324799366,1714337449021,-1613.74,0.00010958,2]
[324799367,1714337449031,-500.0,0.00010958,2]
[324799368,1714337449041,-1345.48,0.00010958,2]
[324799369,1714337449052,-1002.58,0.00010958,2]
[324799370,1714337449061,-500.0,0.00010958,2]
[324799371,1714337449072,-500.0,0.00010958,2]
[324799372,1714337449081,-500.0,0.00010958,2]
[324799373,1714337449091,-500.0,0.00010958,2]
[324799374,1714337449104,-500.0,0.00010958,2]
[324799375,1714337449114,-500.41,0.00010958,2]
[324799376,1714337449189,-500.0,0.00010958,2]
[324799377,1714337449199,-500.0,0.00010958,2]
[324799378,1714337449208,-500.0,0.00010958,2]
[324799379,1714337449217,-500.0,0.00010958,2]
[324799380,1714337449227,-500.0,0.00010958,2]
[324799381,1714337449235,-1125.75,0.00010958,2]
[324799382,1714337449244,-500.0,0.00010958,2]
[324799383,1714337449254,-500.0,0.00010958,2]
[324799384,1714337449263,-4127.61,0.00010958,2]
[324799385,1714337449272,-1343.67831077,0.00010958,2]
[324799386,1714337450386,-254.45204984,0.00010958,2]
[324799387,1714337450399,-887.76179516,0.00010958,2]
[324799388,1714337450411,-501.0984808,0.00010958,2]
[324799389,1714337450425,-666.14594998,0.00010958,2]
[324799390,1714337450703,-1147.94373023,0.00010958,2]
[324799391,1714337450715,-9428.85968322,0.00010958,2]
[324799392,1714337450725,-500.0,0.00010958,2]
[324799393,1714337450734,-434.62303381,0.00010958,2]
[324799394,1714337450743,-500.0,0.00010958,2]
[324799395,1714337450752,-68.06985746,0.00010958,2]
[324799396,1714337451032,-431.93014254,0.00010958,2]
[324799397,1714337451042,-500.0,0.00010958,2]
[324799398,1714337451051,-500.0,0.00010958,2]
[324799399,1714337451061,-322.60998829,0.00010958,2]
[324799400,1714337451545,-177.39001171,0.00010958,2]
[324799401,1714337451555,-979.2,0.00010958,2]
[324799402,1714337451567,-300.26083678,0.00010958,2]
[324799403,1714337451844,-170.65916322,0.00010958,2]
[324799404,1714337451854,-500.0,0.00010958,2]
[324799405,1714337451863,-500.0,0.00010958,2]
[324799406,1714337451873,-288.12390509,0.00010958,2]
[324799407,1714337451885,-211.87609491,0.00010958,2]
[324799408,1714337451894,-199.39867799,0.00010958,2]
[324799409,1714337451905,-300.60132201,0.00010958,2]
[324799410,1714337451914,-500.0,0.00010958,2]
[324799411,1714337451924,-2348.62088505,0.00010958,2]
[324799412,1714337452839,-572.17911495,0.00010958,2]
[324799413,1714337452848,-181.42267705,0.00010958,2]
[324799414,1714337452860,-318.57732295,0.00010958,2]
[324799415,1714337452870,-500.0,0.00010958,2]
[324799416,1714337452879,-1115.19,0.00010958,2]
[324799417,1714337452888,-132.29659705,0.00010958,2]
[324799497,1714338632244,-206.88313584,5.69e-05,2]
[324799501,1714338632253,-202.0,5.691e-05,2]
[324799505,1714338632263,-2050.05375152,5.691e-05,2]
[324799509,1714338632275,-272.83124731,5.691e-05,2]
[324799512,1714338632284,-262.42010681,5.692e-05,2]
[324799515,1714338632293,-761.7045538,5.692e-05,2]
[324799518,1714338632303,-150.0,5.697e-05,2]
[324799521,1714338632312,-885.37388163,5.698e-05,2]
[324799525,1714338632323,-713.07366266,5.698e-05,2]
[324799528,1714338632335,-893.59727248,5.698e-05,2]
[324799531,1714338632347,-317.946002,5.698e-05,2]
[324799534,1714338632358,-1262.010745,5.698e-05,2]
[324799537,1714338632370,-809.73333754,5.698e-05,2]
[324799540,1714338632381,-4000.0,5.698e-05,2]
[324799545,1714338632393,-3860.40152884,5.698e-05,2]
[324799547,1714338632404,-10036.27369775,5.698e-05,2]
[324799549,1714338632413,-1526.71808343,5.7e-05,2]
[324799550,1714338632423,-976.75723739,5.706e-05,2]
[324799552,1714338632432,-560.51521049,5.711e-05,2]
[324799554,1714338632441,-361.37892165,5.711e-05,2]
[324799556,1714338632451,-210.0,6.267e-05,2]
[324799558,1714338632463,-293.0,6.893e-05,2]
[324799560,1714338632472,-183.0,7.583e-05,2]
[324799562,1714338632481,-410.68,8.219e-05,2]
[324799564,1714338632491,-250.0,8.397e-05,2]
[324799566,1714338632501,-2123.58,8.486e-05,2]
[324799568,1714338632510,-150.0,8.508e-05,2]
[324799570,1714338632519,-969.06,8.626e-05,2]
[324799572,1714338632528,-160.0,8.992e-05,2]
[324799574,1714338632540,-4240.74265464,9.016e-05,2]
[324799575,1714338632553,-580.86539022,9.016e-05,2]
[324799576,1714338632565,-593.41505923,9.016e-05,2]
[324799577,1714338632577,-3189.15,9.016e-05,2]
[324799579,1714338632589,-2444.26708576,9.016e-05,2]
[324799581,1714338632600,-4909.8383545,9.016e-05,2]
[324799589,1714338638013,-251.50157788,9.016e-05,2]
[324799592,1714338638025,-3319.01570001,9.016e-05,2]
[324799596,1714338638036,-4371.20417776,9.016e-05,2]
[324799599,1714338638046,-175.96,9.038e-05,2]
[324799602,1714338638056,-175.96,9.063e-05,2]
[324799606,1714338638065,-500.0,9.087e-05,2]
[324799610,1714338638074,-175.96,9.088e-05,2]
[324799615,1714338638085,-175.96,9.112e-05,2]
[324799617,1714338638095,-175.96,9.137e-05,2]
[324799620,1714338638105,-175.96,9.162e-05,2]
[324799622,1714338638114,-175.96,9.187e-05,2]
[324799624,1714338638124,-175.96,9.212e-05,2]
[324799626,1714338638132,-175.96,9.236e-05,2]
[324799628,1714338638142,-175.96,9.261e-05,2]
[324799630,1714338638152,-175.96,9.286e-05,2]
[324799632,1714338638161,-175.96,9.311e-05,2]
[324799634,1714338638170,-175.96,9.335e-05,2]
[324799636,1714338638180,-175.96,9.36e-05,2]
[324799638,1714338638189,-175.96,9.385e-05,2]
[324799640,1714338638198,-175.96,9.41e-05,2]
[324799642,1714338638208,-175.96,9.435e-05,2]
[324799644,1714338638217,-175.96,9.459e-05,2]
[324799646,1714338638227,-175.96,9.484e-05,2]
[324799648,1714338638236,-175.96,9.509e-05,2]
[324799650,1714338638246,-150.99,9.67e-05,2]
[324799651,1714338638256,-9875.29,9.67e-05,4]
[324799653,1714338638265,-854.07,9.67e-05,2]
[324799655,1714338638274,-150.99,9.678e-05,2]
[324799657,1714338638284,-2821.28,9.716e-05,2]
[324799659,1714338638293,-499.99,9.731e-05,2]
[324799661,1714338638302,-1000.0,9.819e-05,2]
[324799663,1714338638312,-2500.0,9.937e-05,2]
[324799665,1714338638321,-710.59605264,0.00010022,2]
[324799667,1714338638330,-200.8,0.00010023,2]
[324799669,1714338638341,-2500.0,0.0001038,2]
[324799670,1714338638350,-2500.0,0.0001038,2]
[324799671,1714338638359,-160.30085167,0.00010391,2]
[324799672,1714338638369,-3166.34898217,0.00010408,2]
[324799674,1714338638378,-410.68,0.00010425,2]
[324799676,1714338638388,-170.59,0.00010432,2]
[324799679,1714338638397,-537.94873719,0.00010478,2]
[324799681,1714338638408,-1034.6412428,0.00010479,3]
[324799683,1714338638417,-202.42923372,0.00010479,3]
[324799685,1714338638427,-31743.77533942,0.0001048,2]
[324799707,1714338638634,-1500.0,5.689e-05,2]
[324799709,1714338638643,-4195.7437989,0.0001048,2]
[324799711,1714338638655,-838.75528515,0.0001048,2]
[324799714,1714338638666,-488174.83729473,0.0001048,2]
[324799717,1714338638675,-160.0,0.00010491,2]
[324799719,1714338638685,-848.8702557,0.00010728,2]
[324799721,1714338638695,-209.52982044,0.00010758,2]
[324799723,1714338638704,-100000.0,0.00010758,2]
[324799725,1714338638714,-961.3567,0.00010758,2]
[324799727,1714338638729,-145957.0927,0.00010856,2]
[324799730,1714338638738,-2704.12580599,0.00010858,2]
[324799732,1714338638747,-500.0,0.00010858,2]
[324799734,1714338638756,-10000.0,0.00010858,2]
[324799736,1714338638766,-1352.02412604,0.00010956,2]
[324799738,1714338638775,-35267.57312085,0.00010956,2]
[324799740,1714338638785,-4730.70615897,0.00010957,2]
[324799742,1714338638795,-158.52126803,0.00010957,2]
[324799744,1714338638804,-179.49292044,0.00010957,2]
[324799746,1714338638814,-1034.6412428,0.00010957,3]
[324799747,1714338638823,-500.0,0.00010958,2]
[324799750,1714338638833,-500.0,0.00010958,2]
[324799752,1714338638846,-500.0,0.00010958,2]
[324799754,1714338638856,-500.0,0.00010958,2]
[324799756,1714338638865,-500.0,0.00010958,2]
[324799757,1714338638875,-500.0,0.00010958,2]
[324799758,1714338638884,-500.0,0.00010958,2]
[324799759,1714338638893,-179.74414857,0.00010958,2]
[324799760,1714338638902,-419.84556994,0.00010958,2]
[324799761,1714338638912,-350.50730495,0.00010958,2]
[324799762,1714338638921,-500.0,0.00010958,2]
[324799763,1714338638931,-500.0,0.00010958,2]
[324799764,1714338638940,-500.0,0.00010958,2]
[324799765,1714338638949,-507.11218332,0.00010958,2]
[324799766,1714338638959,-500.0,0.00010958,2]
[324799767,1714338639215,-500.0,0.00010958,2]
[324799768,1714338639225,-500.0,0.00010958,2]
[324799769,1714338639234,-500.0,0.00010958,2]
[324799770,1714338639243,-298.39339498,0.00010958,2]
[324799771,1714338639254,-500.0,0.00010958,2]
[324799772,1714338639264,-500.0,0.00010958,2]
[324799773,1714338639273,-500.0,0.00010958,2]
[324799774,1714338639283,-500.0,0.00010958,2]
[324799775,1714338639292,-500.0,0.00010958,2]
[324799776,1714338639302,-500.0,0.00010958,2]
[324799777,1714338639312,-500.0,0.00010958,2]
[324799778,1714338639321,-500.0,0.00010958,2]
[324799779,1714338639330,-500.0,0.00010958,2]
[324799780,1714338639340,-500.0,0.00010958,2]
[324799781,1714338639349,-247.23576745,0.00010958,2]
[324799782,1714338639359,-500.0,0.00010958,2]
[324799783,1714338639368,-500.0,0.00010958,2]
[324799784,1714338639377,-500.0,0.00010958,2]
[324799785,1714338639387,-500.0,0.00010958,2]
[324799786,1714338639397,-500.0,0.00010958,2]
[324799787,1714338639406,-500.0,0.00010958,2]
[324799788,1714338639415,-500.0,0.00010958,2]
[324799789,1714338639425,-500.0,0.00010958,2]
[324799790,1714338639434,-500.0,0.00010958,2]
[324799791,1714338639444,-500.0,0.00010958,2]
[324799792,1714338639454,-500.0,0.00010958,2]
[324799793,1714338639466,-500.0,0.00010958,2]
[324799794,1714338639476,-500.0,0.00010958,2]
[324799795,1714338639485,-500.0,0.00010958,2]
[324799796,1714338639495,-500.0,0.00010958,2]
[324799797,1714338639505,-63.12689512,0.00010958,2]
[324799799,1714338641148,-436.87310488,0.00010958,2]
[324799800,1714338641157,-500.0,0.00010958,2]
[324799801,1714338641167,-500.0,0.00010958,2]
[324799802,1714338641176,-163.12689512,0.00010958,2]
[324799803,1714338641735,-336.87310488,0.00010958,2]
[324799804,1714338641754,-500.0,0.00010958,2]
[324799805,1714338641774,-500.0,0.00010958,2]
[324799806,1714338641794,-500.0,0.00010958,2]
[324799807,1714338641816,-500.0,0.00010958,2]
[324799808,1714338641834,-467.13,0.00010958,2]
[324799809,1714338641845,-289.50251479,0.00010958,2]
[324799810,1714338641855,-500.0,0.00010958,2]
[324799811,1714338641866,-500.0,0.00010958,2]
[324799812,1714338641876,-500.0,0.00010958,2]
[324799813,1714338641886,-468.1426098,0.00010958,2]
[324799814,1714338641900,-31.8573902,0.00010958,2]
[324799815,1714338641910,-500.0,0.00010958,2]
[324799816,1714338641920,-500.0,0.00010958,2]
[324799817,1714338641930,-500.0,0.00010958,2]
[324799818,1714338641940,-500.0,0.00010958,2]
[324799819,1714338641950,-500.0,0.00010958,2]
[324799820,1714338641960,-500.0,0.00010958,2]
[324799821,1714338641970,-500.0,0.00010958,2]
[324799822,1714338641980,-500.0,0.00010958,2]
[324799823,1714338641990,-500.0,0.00010958,2]
[324799824,1714338642000,-500.0,0.00010958,2]
[324799825,1714338642013,-500.0,0.00010958,2]
[324799826,1714338642025,-500.0,0.00010958,2]
[324799827,1714338642037,-500.0,0.00010958,2]
[324799828,1714338642048,-500.0,0.00010958,2]
[324799829,1714338642059,-500.0,0.00010958,2]
[324799830,1714338642068,-500.0,0.00010958,2]
[324799831,1714338642080,-500.0,0.00010958,2]
[324799832,1714338642093,-500.0,0.00010958,2]
[324799833,1714338642109,-500.0,0.00010958,2]
[324799834,1714338642118,-500.0,0.00010958,2]
[324799835,1714338642128,-500.0,0.00010958,2]
[324799836,1714338642139,-500.0,0.00010958,2]
[324799837,1714338642150,-500.0,0.00010958,2]
[324799838,1714338642160,-500.0,0.00010958,2]
[324799839,1714338642169,-665.3,0.00010958,2]
[324799840,1714338642180,-500.0,0.00010958,2]
[324799841,1714338642189,-500.0,0.00010958,2]
[324799842,1714338642198,-500.0,0.00010958,2]
[324799843,1714338642207,-500.0,0.00010958,2]
[324799844,1714338642216,-500.0,0.00010958,2]
[324799845,1714338642226,-500.0,0.00010958,2]
[324799846,1714338642235,-500.0,0.00010958,2]
[324799847,1714338642246,-500.0,0.00010958,2]
[324799848,1714338642255,-500.0,0.00010958,2]
[324799849,1714338642265,-500.0,0.00010958,2]
[324799850,1714338642275,-500.0,0.00010958,2]
[324799851,1714338642286,-500.0,0.00010958,2]
[324799852,1714338642298,-500.0,0.00010958,2]
[324799853,1714338642309,-500.0,0.00010958,2]
[324799854,1714338642321,-500.0,0.00010958,2]
[324799855,1714338642331,-500.0,0.00010958,2]
[324799856,1714338642342,-500.0,0.00010958,2]
[324799857,1714338642351,-585.75,0.00010958,2]
[324799858,1714338642360,-173.86023274,0.00010958,2]
[324799859,1714338642369,-500.0,0.00010958,2]
[324799860,1714338642378,-500.0,0.00010958,2]
[324799861,1714338642389,-500.0,0.00010958,2]
[324799862,1714338642399,-500.0,0.00010958,2]
[324799863,1714338642409,-500.0,0.00010958,2]
[324799864,1714338642419,-500.0,0.00010958,2]
[324799865,1714338642429,-500.0,0.00010958,2]
[324799866,1714338642438,-500.0,0.00010958,2]
[324799867,1714338642448,-155.0,0.00010958,2]
[324799868,1714338642459,-500.0,0.00010958,2]
[324799869,1714338642472,-500.0,0.00010958,2]
[324799870,1714338642484,-500.0,0.00010958,2]
[324799871,1714338642495,-500.0,0.00010958,2]
[324799872,1714338642506,-500.0,0.00010958,2]
[324799873,1714338642515,-500.0,0.00010958,2]
[324799874,1714338642526,-500.0,0.00010958,2]
[324799875,1714338642535,-500.0,0.00010958,2]
[324799876,1714338642547,-500.0,0.00010958,2]
[324799877,1714338642556,-500.0,0.00010958,2]
[324799878,1714338642566,-500.0,0.00010958,2]
[324799879,1714338642575,-500.0,0.00010958,2]
[324799880,1714338642585,-608.9,0.00010958,2]
[324799881,1714338642594,-500.0,0.00010958,2]
[324799882,1714338642603,-500.0,0.00010958,2]
[324799883,1714338642613,-500.0,0.00010958,2]
[324799884,1714338642623,-500.0,0.00010958,2]
[324799885,1714338642632,-500.0,0.00010958,2]
[324799886,1714338642643,-500.0,0.00010958,2]
[324799887,1714338642652,-150.90881,0.00010958,2]
[324799888,1714338642662,-500.0,0.00010958,2]
[324799889,1714338642671,-500.0,0.00010958,2]
[324799890,1714338642681,-500.0,0.00010958,2]
[324799891,1714338642690,-500.0,0.00010958,2]
[324799892,1714338642701,-500.0,0.00010958,2]
[324799893,1714338642711,-500.0,0.00010958,2]
[324799894,1714338642719,-500.0,0.00010958,2]
[324799895,1714338642728,-500.0,0.00010958,2]
[324799896,1714338642737,-317.52582832,0.00010958,2]
[324799897,1714338642747,-500.0,0.00010958,2]
[324799898,1714338642755,-500.0,0.00010958,2]
[324799899,1714338642764,-500.0,0.00010958,2]
[324799900,1714338642773,-500.0,0.00010958,2]
[324799901,1714338642783,-500.0,0.00010958,2]
[324799902,1714338642792,-500.0,0.00010958,2]
[324799903,1714338642801,-500.0,0.00010958,2]
[324799904,1714338642810,-500.0,0.00010958,2]
[324799905,1714338642820,-500.0,0.00010958,2]
[324799906,1714338642829,-538.18,0.00010958,2]
[324799907,1714338642838,-500.0,0.00010958,2]
[324799908,1714338642847,-500.0,0.00010958,2]
[324799909,1714338642856,-500.0,0.00010958,2]
[324799910,1714338642865,-500.0,0.00010958,2]
[324799912,1714338642875,-500.0,0.00010958,2]
[324799914,1714338642884,-500.0,0.00010958,2]
[324799916,1714338642893,-500.0,0.00010958,2]
[324799919,1714338642902,-500.0,0.00010958,2]
[324799921,1714338642911,-500.0,0.00010958,2]
[324799923,1714338642919,-500.0,0.00010958,2]
[324799925,1714338642928,-500.0,0.00010958,2]
[324799927,1714338642937,-696.51,0.00010958,2]
[324799928,1714338642946,-500.0,0.00010958,2]
[324799929,1714338642955,-500.0,0.00010958,2]
[324799930,1714338642964,-500.0,0.00010958,2]
[324799932,1714338642973,-500.0,0.00010958,2]
[324799934,1714338642982,-500.0,0.00010958,2]
[324799936,1714338642992,-500.0,0.00010958,2]
[324799937,1714338643001,-500.0,0.00010958,2]
[324799938,1714338643010,-500.0,0.00010958,2]
[324799939,1714338643019,-500.0,0.00010958,2]
[324799941,1714338643028,-500.0,0.00010958,2]
[324799942,1714338643037,-500.0,0.00010958,2]
[324799943,1714338643045,-500.0,0.00010958,2]
[324799944,1714338643054,-439.50926829,0.00010958,2]
[324799945,1714338643063,-570.77,0.00010958,2]
[324799946,1714338643072,-500.0,0.00010958,2]
[324799947,1714338643081,-520.24,0.00010958,2]
[324799948,1714338643091,-500.0,0.00010958,2]
[324799949,1714338643099,-500.0,0.00010958,2]
[324799950,1714338643109,-414.16793897,0.00010958,2]
[324799951,1714338643118,-500.0,0.00010958,2]
[324799952,1714338643127,-500.0,0.00010958,2]
[324799953,1714338643136,-500.0,0.00010958,2]
[324799954,1714338643145,-500.0,0.00010958,2]
[324799955,1714338643154,-500.0,0.00010958,2]
[324799956,1714338643163,-500.0,0.00010958,2]
[324799957,1714338643172,-500.0,0.00010958,2]
[324799958,1714338643181,-500.0,0.00010958,2]
[324799959,1714338643190,-500.0,0.00010958,2]
[324799960,1714338643199,-500.0,0.00010958,2]
[324799961,1714338643208,-500.0,0.00010958,2]
[324799962,1714338643217,-500.0,0.00010958,2]
[324799963,1714338643226,-500.0,0.00010958,2]
[324799964,1714338643237,-532.59,0.00010958,2]
[324799965,1714338643246,-500.0,0.00010958,2]
[324799966,1714338643255,-500.0,0.00010958,2]
[324799967,1714338643264,-500.0,0.00010958,2]
[324799968,1714338643274,-500.0,0.00010958,2]
[324799969,1714338643283,-500.0,0.00010958,2]
[324799970,1714338643292,-500.0,0.00010958,2]
[324799971,1714338643301,-500.0,0.00010958,2]
[324799972,1714338643310,-500.0,0.00010958,2]
[324799975,1714338643319,-500.0,0.00010958,2]
[324799977,1714338643329,-612.06,0.00010958,2]
[324799978,1714338643338,-500.0,0.00010958,2]
[324799979,1714338643347,-500.0,0.00010958,2]
[324799980,1714338643355,-500.0,0.00010958,2]
[324799982,1714338643364,-500.0,0.00010958,2]
[324799984,1714338643373,-500.0,0.00010958,2]
[324799986,1714338643382,-685.94,0.00010958,2]
[324799987,1714338643391,-500.0,0.00010958,2]
[324799988,1714338643400,-500.0,0.00010958,2]
[324799989,1714338643410,-500.0,0.00010958,2]
[324799990,1714338643419,-500.0,0.00010958,2]
[324799991,1714338643428,-983.48,0.00010958,2]
[324799992,1714338643437,-912.79,0.00010958,2]
[324799993,1714338643446,-500.0,0.00010958,2]
[324799994,1714338643455,-576.05,0.00010958,2]
[324799995,1714338643468,-500.0,0.00010958,2]
[324799996,1714338643477,-500.0,0.00010958,2]
[324799997,1714338643486,-500.0,0.00010958,2]
[324799998,1714338643495,-500.0,0.00010958,2]
[324799999,1714338643505,-500.0,0.00010958,2]
[324800000,1714338643514,-500.0,0.00010958,2]
[324800001,1714338643523,-500.0,0.00010958,2]
[324800002,1714338643532,-500.0,0.00010958,2]
[324800003,1714338643542,-933.49,0.00010958,2]
[324800004,1714338643552,-500.0,0.00010958,2]
[324800005,1714338643562,-500.0,0.00010958,2]
[324800006,1714338643571,-500.0,0.00010958,2]
[324800007,1714338643580,-957.35,0.00010958,2]
[324800008,1714338643589,-500.0,0.00010958,2]
[324800009,1714338643599,-500.0,0.00010958,2]
[324800010,1714338643607,-500.0,0.00010958,2]
[324800011,1714338643616,-500.0,0.00010958,2]
[324800012,1714338643626,-500.0,0.00010958,2]
[324800013,1714338643635,-500.0,0.00010958,2]
[324800014,1714338643644,-542.85,0.00010958,2]
[324800015,1714338643654,-706.25,0.00010958,2]
[324800016,1714338643663,-500.0,0.00010958,2]
[324800017,1714338643672,-500.0,0.00010958,2]
[324800018,1714338643681,-500.0,0.00010958,2]
[324800019,1714338643690,-500.0,0.00010958,2]
[324800020,1714338643700,-500.0,0.00010958,2]
[324800021,1714338643709,-500.0,0.00010958,2]
[324800022,1714338643719,-500.0,0.00010958,2]
[324800023,1714338643728,-500.0,0.00010958,2]
[324800024,1714338643967,-500.0,0.00010958,2]
[324800025,1714338643978,-500.0,0.00010958,2]
[324800026,1714338643989,-500.0,0.00010958,2]
[324800027,1714338643998,-500.0,0.00010958,2]
[324800028,1714338644007,-500.0,0.00010958,2]
[324800029,1714338644016,-687.03,0.00010958,2]
[324800030,1714338644025,-500.0,0.00010958,2]
[324800031,1714338644034,-500.0,0.00010958,2]
[324800032,1714338644043,-500.0,0.00010958,2]
[324800033,1714338644052,-500.0,0.00010958,2]
[324800034,1714338644062,-500.0,0.00010958,2]
[324800035,1714338644071,-500.0,0.00010958,2]
[324800036,1714338644081,-500.0,0.00010958,2]
[324800037,1714338644093,-500.0,0.00010958,2]
[324800038,1714338644104,-1021.87,0.00010958,2]
[324800039,1714338644113,-500.0,0.00010958,2]
[324800040,1714338644123,-500.0,0.00010958,2]
[324800041,1714338644133,-500.0,0.00010958,2]
[324800042,1714338644143,-500.0,0.00010958,2]
[324800043,1714338644152,-500.0,0.00010958,2]
[324800044,1714338644161,-275.02860858,0.00010958,2]
[324800045,1714338644186,-224.97139142,0.00010958,2]
[324800046,1714338644196,-500.0,0.00010958,2]
[324800047,1714338644206,-500.0,0.00010958,2]
[324800048,1714338644216,-500.0,0.00010958,2]
[324800049,1714338644226,-500.0,0.00010958,2]
[324800050,1714338644236,-500.0,0.00010958,2]
[324800051,1714338644245,-500.0,0.00010958,2]
[324800052,1714338644254,-500.0,0.00010958,2]
[324800053,1714338644263,-500.0,0.00010958,2]
[324800054,1714338644272,-500.0,0.00010958,2]
[324800055,1714338644281,-500.0,0.00010958,2]
[324800056,1714338644290,-500.0,0.00010958,2]
[324800057,1714338644299,-500.0,0.00010958,2]
[324800058,1714338644308,-500.0,0.00010958,2]
[324800059,1714338644317,-564.08516178,0.00010958,2]
[324800060,1714338644326,-500.0,0.00010958,2]
[324800061,1714338644335,-500.0,0.00010958,2]
[324800062,1714338644344,-500.0,0.00010958,2]
[324800063,1714338644354,-500.0,0.00010958,2]
[324800064,1714338644364,-500.0,0.00010958,2]
[324800065,1714338644372,-500.0,0.00010958,2]
[324800066,1714338644383,-500.0,0.00010958,2]
[324800067,1714338644392,-500.0,0.00010958,2]
[324800068,1714338644402,-417.5,0.00010958,2]
[324800069,1714338644411,-500.0,0.00010958,2]
[324800070,1714338644421,-500.0,0.00010958,2]
[324800071,1714338644432,-500.0,0.00010958,2]
[324800072,1714338644444,-500.0,0.00010958,2]
[324800073,1714338644455,-500.0,0.00010958,2]
[324800074,1714338644467,-500.0,0.00010958,2]
[324800075,1714338644476,-500.0,0.00010958,2]
[324800076,1714338644486,-500.0,0.00010958,2]
[324800077,1714338644497,-500.0,0.00010958,2]
[324800078,1714338644507,-731.01,0.00010958,2]